Workbook

Sheet Impact and Productivity
A2: Early Career Research Award - Application Form - 2026 | L2: Points
H3: A. Research Impact and Productivity | L3: =F24+F39+F47+F50 -> 55.33333333
A4: Name: | H4: B. Other Research Accomplishments | L4: ='Other Accomp.'!F17+'Other Accomp.'!F32+'Other Accomp.'!F47+'Other Accomp.'!F62 -> 25.66666667
A5: Department: | H5: C. Research Leadership | L5: =MIN(Leadership!F17+Leadership!F32+Leadership!F40+Leadership!F52,0.5*(L4+F24)) -> 16.625
H6: D. International & Sustainability | L6: =(0.5*Sustainability!C8)+(0.05*Sustainability!C6) -> 12.25
K7: Total | L7: =SUM(L3:L6) -> 109.875
A8: Note: To add any row, just double click on any cell within the row
A10: A. Research Impact and Productivity
A11: Publications in ISI/Scopus-indexed journals (only Q1 and Q2)
A12: JN | B12: Paper Title with Journal Name | C12: Quartile (Q) | D12: No. Au | E12: 1st/Corr | F12: Points
A13: 1 | B13: XXX | C13: 1 | D13: 3 | E13: Y | F13: =IF(D13=1,IFERROR((IF(C13=1,10,8))/D13,0),IFERROR((IF(C13=1,10,8))/D13,0)+IF(E13="Y",0.25,0)) -> 3.583333333 | G13: SAMPLE
A14: 2 | B14: XXX | C14: 2 | D14: 2 | E14: N | F14: =IF(D14=1,IFERROR((IF(C14=1,10,8))/D14,0),IFERROR((IF(C14=1,10,8))/D14,0)+IF(E14="Y",0.25,0)) -> 4 | G14: SAMPLE
A15: 3 | F15: 0
A16: 4 | F16: 0
A17: 5 | F17: 0
A18: 6 | F18: 0
A19: 7 | F19: 0
A20: 8 | F20: 0
A21: 9 | F21: 0
A22: 10 | F22: 0
F23: 0
E24: Total | F24: =SUM(F13:F23) -> 7.583333333
A26: Publications in flagship conferences (only A* and A)
A27: CN | B27: Paper Title with Conference Name | D27: No. Au | E27: 1st | F27: Points
A28: 1 | B28: XXX | D28: 3 | E28: Y | F28: =IF(D28=1,IFERROR(3/D28,0),IFERROR(3/D28,0)+IF(E28="Y",0.25,0)) -> 1.25 | G28: SAMPLE
A29: 2 | B29: XXX | D29: 2 | E29: N | F29: =IF(D29=1,IFERROR(3/D29,0),IFERROR(3/D29,0)+IF(E29="Y",0.25,0)) -> 1.5 | G29: SAMPLE
A30: 3 | F30: 0
A31: 4 | F31: 0
A32: 5 | F32: 0
A33: 6 | F33: 0
A34: 7 | F34: 0
A35: 8 | F35: 0
A36: 9 | F36: 0
A37: 10 | F37: 0
F38: 0
E39: Total | F39: =SUM(F28:F38) -> 2.75
A41: Citations | B41: [Scopus: All work over the last 8 years but only counting citations in the last 4 years]
A42: Year | B42: Citations (excluding self-citation) | F42: Points
A43: 20xx | B43: 160 | F43: =B43*0.5 -> 80
A44: 20xx | B44: 140 | F44: =B44*0.5 -> 70
A45: 20xx | B45: 120 | F45: 60
A46: 20xx | B46: 100 | F46: 50
E47: Total | F47: =MIN(SUM(F43:F46),30) -> 30
A49: h5-index | E49: Value | F49: Points
A50: Number of articles cited at least h times over the last 5 years (from Scopus) | E50: 15 | F50: =E50 -> 15

Sheet Other Accomp.
A1: Early Career Research Award - Application Form
A3: B. Other Research Accomplishments
A4: Research-Oriented Books or Volumes | C4: A: Authored, E: Edited, C: Book chapter
A5: BN | B5: Book or Chapter Title with publisher | C5: Auth, Ed, Ch. | D5: No. Au | E5: 1st | F5: Points
A6: 1 | B6: XXX | C6: A | D6: 3 | E6: Y | F6: =IF(D6=1,IFERROR(IF(C6="A",15,IF(C6="E",10,5))/D6,0),IFERROR(IF(C6="A",15,IF(C6="E",10,5))/D6,0)+IF(AND(C6="A",E6="Y"),1,0)) -> 6 | G6: SAMPLE
A7: 2 | B7: XXX | C7: E | D7: 2 | F7: =IF(D7=1,IFERROR(IF(C7="A",15,IF(C7="E",10,5))/D7,0),IFERROR(IF(C7="A",15,IF(C7="E",10,5))/D7,0)+IF(AND(C7="A",E7="Y"),1,0)) -> 5 | G7: SAMPLE
A8: 3 | B8: XXX | C8: C | D8: 1 | F8: 5 | G8: SAMPLE
A9: 4 | F9: 0
A10: 5 | F10: 0
A11: 6 | F11: 0
A12: 7 | F12: 0
A13: 8 | F13: 0
A14: 9 | F14: 0
A15: 10 | F15: 0
F16: 0
E17: Total | F17: =SUM(F6:F16) -> 16
A19: Other Publications in ISI/Scopus-indexed journals (NOT Q1/Q2)
A20: JN | B20: Paper Title with Journal Name | D20: No. Au | E20: 1st/Corr | F20: Points
A21: 1 | B21: XXX | D21: 3 | E21: Y | F21: =IF(D21=1,IFERROR(5/D21,0),IFERROR(5/D21,0)+IF(E21="Y",0.25,0)) -> 1.916666667 | G21: SAMPLE
A22: 2 | B22: XXX | D22: 2 | E22: N | F22: =IF(D22=1,IFERROR(5/D22,0),IFERROR(5/D22,0)+IF(E22="Y",0.25,0)) -> 2.5 | G22: SAMPLE
A23: 3 | F23: 0
A24: 4 | F24: 0
A25: 5 | F25: 0
A26: 6 | F26: 0
A27: 7 | F27: 0
A28: 8 | F28: 0
A29: 9 | F29: 0
A30: 10 | F30: 0
F31: 0
E32: Total | F32: =SUM(F21:F31) -> 4.416666667
A34: Other Publications in conferences (NOT Flagship)
A35: CN | B35: Paper Title with Conference Name | D35: No. Au | E35: 1st | F35: Points
A36: 1 | B36: XXX | D36: 3 | E36: Y | F36: =IF(D36=1,IFERROR(1/D36,0),IFERROR(1/D36,0)+IF(E36="Y",0.25,0)) -> 0.5833333333 | G36: SAMPLE
A37: 2 | B37: XXX | D37: 2 | E37: N | F37: =IF(D37=1,IFERROR(1/D37,0),IFERROR(1/D37,0)+IF(E37="Y",0.25,0)) -> 0.5 | G37: SAMPLE
A38: 3 | F38: 0
A39: 4 | F39: 0
A40: 5 | F40: 0
A41: 6 | F41: 0
A42: 7 | F42: 0
A43: 8 | F43: 0
A44: 9 | F44: 0
A45: 10 | F45: 0
F46: 0
E47: Total | F47: =SUM(F36:F46) -> 1.083333333
A49: Patents
A50: PN | B50: Patent Title and Number | E50: No. Inv | F50: Points
A51: 1 | B51: XXX | E51: 3 | F51: =IFERROR(5/E51,0) -> 1.666666667 | G51: SAMPLE
A52: 2 | B52: XXX | E52: 2 | F52: =IFERROR(5/E52,0) -> 2.5 | G52: SAMPLE
A53: 3 | F53: 0
A54: 4 | F54: 0
A55: 5 | F55: 0
A56: 6 | F56: 0
A57: 7 | F57: 0
A58: 8 | F58: 0
A59: 9 | F59: 0
A60: 10 | F60: 0
F61: 0
E62: Total | F62: =SUM(F51:F61) -> 4.166666667

Sheet Leadership
A1: Early Career Research Award - Application Form
A3: C. Research Leadership
A4: External Funded Research Projects (ongoing/completed) | E4: P: Principle Investigator C: Co-Investigator
A5: SN | B5: Project Title | E5: Role | F5: Points
A6: 1 | B6: XXX | E6: P | F6: =IF(E6="P",6,IF(E6="C",5,0)) -> 6 | G6: SAMPLE
A7: 2 | B7: XXX | E7: C | F7: =IF(E7="P",6,IF(E7="C",5,0)) -> 5 | G7: SAMPLE
A8: 3 | F8: =IF(E8="P",6,IF(E8="C",5,0)) -> 0
A9: 4 | F9: 0
A10: 5 | F10: 0
A11: 6 | F11: 0
A12: 7 | F12: 0
A13: 8 | F13: 0
A14: 9 | F14: 0
A15: 10 | F15: 0
F16: 0
E17: Total | F17: =SUM(F6:F16) -> 11
A19: Internal Funded Research Projects (ongoing/completed) | E19: P: Principle Investigator C: Co-Investigator
A20: SN | B20: Project Title | E20: Role | F20: Points
A21: 1 | B21: XXX | E21: P | F21: =IF(E21="P",4,IF(E21="C",3,0)) -> 4 | G21: SAMPLE
A22: 2 | B22: XXX | E22: C | F22: =IF(E22="P",4,IF(E22="C",3,0)) -> 3 | G22: SAMPLE
A23: 3 | F23: =IF(E23="P",4,IF(E23="C",3,0)) -> 0
A24: 4 | F24: 0
A25: 5 | F25: 0
A26: 6 | F26: 0
A27: 7 | F27: 0
A28: 8 | F28: 0
A29: 9 | F29: 0
A30: 10 | F30: 0
F31: 0
E32: Total | F32: =SUM(F21:F31) -> 7
A34: MS Thesis and PhD Dissertations (ongoing/completed) | E34: P: PhD , M: MS Thesis , C: Committee Member
A35: SN | B35: Thesis Title | E35: PhD/MS | F35: Points
A36: 1 | B36: XXX | E36: P | F36: =IF(E36="P",4,IF(E36="M",2,IF(E36="C",1,0))) -> 4 | G36: SAMPLE
A37: 2 | B37: XXX | E37: M | F37: =IF(E37="P",4,IF(E37="M",2,IF(E37="C",1,0))) -> 2 | G37: SAMPLE
A38: 3 | B38: XXX | E38: C | F38: 1 | G38: SAMPLE
F39: 0
E40: Total | F40: =SUM(F36:F39) -> 7
A42: Overall Leadership and Recognition in Research
B43: Applicant will write a concise statement of approximately 100-200 words describing his/her major research achievements, their significance, and impact on knowledge in his field of research. Below are examples that might be considered by the ad hoc committee:
B44: · Membership in editorial boards
B45: · Organizing conferences/symposia
B46: · Being invited to deliver keynote speeches
B47: · Participation in International Conferences Scientific Committees
B48: · Development of Research Center and research laboratories at KFUPM
B49: · Serving on review boards, etc.
B50: · Consultancy to National and International Scientific Institutions.
B51: Enter your statement here..
B52: To be filled by the ad-hoc committee based on the statement | E52: Points | G52: Maximum 10 points

Sheet Sustainability
A1: Early Career Research Award - Application Form
A3: D. International & Sustainability
A4: To be updated by the internal Office
A5: 1. International Collaboration | C5: Percentage (%)
B6: Joint publications with international scholars | C6: 45 | D6: SAMPLE
A7: 2. Contribution to UN SDGs | C7: Percentage (%)
B8: Research outputs contributing to the SDGs | C8: 20 | D8: SAMPLE
B9: Source for International & Sustainability is Pure (Elsevier) and will not be requested from applicant.Points for the Percentage of joint publications with international co-authors will be 0.05 multiplied its percentage while the points for the research outputs contributing to the UN SDGs will be 0.5 multiplied by the percentage of these works.
